fUST/lending_fUST_20251225
["ID","MTS","AMOUNT","RATE_DAILY","PERIOD"]
[399677809,1766609443116,-694.0900242,0.000129,2]
[399677818,1766609445904,-5000.0,0.00011589,2]
[399677819,1766609445915,-2475.24799132,0.000129,2]
[399677820,1766609445925,-153.0,0.00012905,2]
[399677821,1766609445935,-153.0,0.00012956,2]
[399677822,1766609445944,-153.0,0.00012978,2]
[399677823,1766609445954,-154.4894839,0.00013,2]
[399677824,1766609445963,-306.0,0.00013,2]
[399677825,1766609445973,-75796.96701686,0.00013,2]
[399678182,1766610631778,-588.0,0.00011907,2]
[399678185,1766610631788,-150.0,0.00011907,2]
[399678187,1766610631798,-262.0,0.00011907,2]
[399678189,1766610631810,-632.1633785,0.00011907,2]
[399678504,1766610637965,-2642.2281514,0.00011907,2]
[399678505,1766610637975,-1381.34001322,0.00012138,2]
[399678506,1766610637987,-3618.65998678,0.00012138,2]
[399678507,1766610637996,-351.05627228,0.0001251,2]
[399678508,1766610638008,-1858.34652109,0.00012739,2]
[399678509,1766610638019,-248.99761866,0.00012899,2]
[399678510,1766610638029,-270.50624915,0.00012899,2]
[399678511,1766610638038,-500.0,0.00012899,2]
[399678512,1766610638049,-241.38850825,0.00012899,2]
[399678513,1766610638059,-500.0,0.00012899,2]
[399678514,1766610638068,-500.0,0.00012899,2]
[399678515,1766610638078,-589.60584563,0.00012899,2]
[399678516,1766610638088,-500.0,0.00012899,2]
[399678517,1766610638098,-500.0,0.00012899,2]
[399678518,1766610638108,-500.0,0.00012899,2]
[399678519,1766610638119,-500.0,0.00012899,2]
[399678520,1766610638128,-301.83029385,0.00012899,2]
[399678521,1766610638138,-197.00173864,0.00012923,2]
[399678522,1766610638149,-91278.02594557,0.00013,2]
[399678523,1766610638159,-2522.58180831,0.00013023,2]
[399678524,1766610638169,-153.0,0.000131,2]
[399678525,1766610638180,-154.221,0.00013123,2]
[399678526,1766610638190,-500.0,0.00013273,2]
[399678527,1766610638200,-500.0,0.00013273,2]
[399678528,1766610638210,-500.0,0.00013273,2]
[399678529,1766610638220,-500.0,0.00013273,2]
[399678530,1766610638230,-500.0,0.00013273,2]
[399678531,1766610638240,-500.0,0.00013273,2]
[399678532,1766610638250,-500.0,0.00013273,2]
[399678533,1766610638259,-500.0,0.00013273,2]
[399678534,1766610638270,-500.0,0.00013273,2]
[399678535,1766610638280,-500.0,0.00013273,2]
[399678536,1766610638290,-500.0,0.00013273,2]
[399678537,1766610638301,-500.0,0.00013273,2]
[399678538,1766610638310,-500.0,0.00013273,2]
[399678539,1766610638320,-500.0,0.00013273,2]
[399678540,1766610638330,-500.0,0.00013273,2]
[399678541,1766610638340,-153.0,0.000133,2]
[399678542,1766610638350,-153.0,0.000133,2]
[399678543,1766610638360,-153.0,0.000133,2]
[399678544,1766610638370,-153.0,0.000133,2]
[399678545,1766610638381,-153.0,0.000133,2]
[399678546,1766610638390,-1206.1806468,0.00013537,2]
[399678547,1766610638400,-184.69247432,0.00013598,2]
[399678548,1766610638410,-153.0,0.000136,2]
[399678549,1766610638420,-300.0,0.00013673,2]
[399678550,1766610638430,-242.17031528,0.00013698,2]
[399678551,1766610638440,-183.54739812,0.00013699,2]
[399678552,1766610638450,-1500.0,0.00013699,2]
[399678553,1766610638460,-12470.1969435,0.00013699,2]
[399678554,1766610638471,-1919.898934,0.00013699,2]
[399678555,1766610638480,-1000.0,0.00013699,2]
[399678556,1766610638490,-608.76249415,0.00013699,2]
[399678557,1766610638499,-319.5514312,0.00013699,2]
[399678558,1766610638509,-500.0,0.00013699,2]
[399678559,1766610638519,-500.0,0.00013699,2]
[399678560,1766610638530,-500.0,0.00013699,2]
[399678561,1766610638540,-500.0,0.00013699,2]
[399678562,1766610638550,-500.0,0.00013699,2]
[399678563,1766610638560,-500.0,0.00013699,2]
[399678564,1766610638570,-500.0,0.00013699,2]
[399678565,1766610638580,-500.0,0.00013699,2]
[399678566,1766610638590,-500.0,0.00013699,2]
[399678567,1766610638601,-500.0,0.00013699,2]
[399678568,1766610638612,-501.35507665,0.00013699,2]
[399678569,1766610638622,-500.0,0.00013699,2]
[399678570,1766610638632,-500.0,0.00013699,2]
[399678571,1766610638642,-187.91552209,0.00013699,2]
[399678572,1766610638652,-500.0,0.00013699,2]
[399678573,1766610638662,-500.0,0.00013699,2]
[399678574,1766610638672,-500.0,0.00013699,2]
[399678575,1766610638686,-494.91178971,0.00013699,2]
[399678576,1766610638696,-500.0,0.00013699,2]
[399678577,1766610638705,-500.0,0.00013699,2]
[399678578,1766610638716,-500.0,0.00013699,2]
[399678579,1766610638727,-500.0,0.00013699,2]
[399678580,1766610638737,-500.0,0.00013699,2]
[399678581,1766610638748,-500.0,0.00013699,2]
[399678582,1766610638757,-500.0,0.00013699,2]
[399678583,1766610638767,-500.0,0.00013699,2]
[399678584,1766610638777,-500.0,0.00013699,2]
[399678585,1766610638787,-500.0,0.00013699,2]
[399678586,1766610638797,-500.0,0.00013699,2]
[399678587,1766610638807,-500.0,0.00013699,2]
[399678588,1766610638816,-500.0,0.00013699,2]
[399678589,1766610638826,-504.90094065,0.00013699,2]
[399678590,1766610638836,-500.0,0.00013699,2]
[399678591,1766610638846,-500.0,0.00013699,2]
[399678592,1766610638856,-250.32761107,0.00013699,2]
[399678593,1766610638867,-500.0,0.00013699,2]
[399678594,1766610638877,-500.0,0.00013699,2]
[399678595,1766610638887,-500.0,0.00013699,2]
[399678596,1766610638896,-500.0,0.00013699,2]
[399678597,1766610638905,-500.0,0.00013699,2]
[399678598,1766610638915,-500.0,0.00013699,2]
[399678599,1766610638924,-500.0,0.00013699,2]
[399678600,1766610638934,-500.0,0.00013699,2]
[399678601,1766610638944,-500.0,0.00013699,2]
[399678602,1766610638955,-500.0,0.00013699,2]
[399678603,1766610638965,-500.0,0.00013699,2]
[399678604,1766610638975,-500.0,0.00013699,2]
[399678605,1766610638985,-500.0,0.00013699,2]
[399678606,1766610638995,-500.0,0.00013699,2]
[399678607,1766610639005,-500.0,0.00013699,2]
[399678608,1766610639015,-500.0,0.00013699,2]
[399678609,1766610639026,-500.0,0.00013699,2]
[399678610,1766610639036,-500.0,0.00013699,2]
[399678611,1766610639046,-500.0,0.00013699,2]
[399678612,1766610639057,-500.0,0.00013699,2]
[399678613,1766610639067,-500.0,0.00013699,2]
[399678614,1766610639077,-500.0,0.00013699,2]
[399678615,1766610639088,-500.0,0.00013699,2]
[399678616,1766610639099,-178.70699532,0.00013699,2]
[399678617,1766610639109,-500.0,0.00013699,2]
[399678618,1766610639120,-500.0,0.00013699,2]
[399678619,1766610639131,-500.0,0.00013699,2]
[399678620,1766610639141,-500.0,0.00013699,2]
[399678621,1766610639151,-453.75365752,0.00013699,2]
[399678622,1766610639161,-500.0,0.00013699,2]
[399678623,1766610639171,-500.0,0.00013699,2]
[399678624,1766610639181,-500.0,0.00013699,2]
[399678625,1766610639191,-500.0,0.00013699,2]
[399678626,1766610639200,-500.0,0.00013699,2]
[399678627,1766610639210,-500.0,0.00013699,2]
[399678628,1766610639220,-500.0,0.00013699,2]
[399678629,1766610639230,-500.0,0.00013699,2]
[399678630,1766610639240,-266.92105761,0.00013699,2]
[399678631,1766610639250,-500.0,0.00013699,2]
[399678632,1766610639259,-500.0,0.00013699,2]
[399678633,1766610639269,-500.0,0.00013699,2]
[399678634,1766610639279,-598.96883992,0.00013699,2]
[399678635,1766610639289,-151.0,0.00013699,2]
[399678636,1766610639299,-160.254446,0.00013699,2]
[399678637,1766610639309,-208.323517,0.00013699,2]
[399678638,1766610639318,-208.323517,0.00013699,2]
[399678639,1766610639328,-208.323517,0.00013699,2]
[399678640,1766610639338,-208.323517,0.00013699,2]
[399678641,1766610639348,-208.323517,0.00013699,2]
[399678642,1766610639359,-208.323517,0.00013699,2]
[399678643,1766610639369,-208.323517,0.00013699,2]
[399678644,1766610639379,-208.323517,0.00013699,2]
[399678645,1766610639389,-151.0,0.00013699,2]
[399678646,1766610639399,-151.0,0.00013699,2]
[399678647,1766610639408,-151.0,0.00013699,2]
[399678648,1766610639418,-151.0,0.00013699,2]
[399678649,1766610639427,-151.0,0.00013699,2]
[399678650,1766610639437,-151.0,0.00013699,2]
[399678651,1766610639446,-151.0,0.00013699,2]
[399678652,1766610639456,-151.0,0.00013699,2]
[399678653,1766610639467,-622.88027893,0.00013699,2]
[399678654,1766610639476,-151.0,0.00013699,2]
[399678655,1766610639486,-151.0,0.00013699,2]
[399678656,1766610639496,-151.0,0.00013699,2]
[399678657,1766610639507,-151.0,0.00013699,2]
[399678658,1766610639516,-151.0,0.00013699,2]
[399678659,1766610639526,-151.0,0.00013699,2]
[399678660,1766610639537,-82.59097181,0.00013699,2]
[399678661,1766610639563,-93.84563719,0.00013699,2]
[399678662,1766610639573,-151.0,0.00013699,2]
[399678663,1766610639582,-76.89425291,0.00013699,2]
[399678666,1766610640076,-74.10574709,0.00013699,2]
[399678667,1766610640086,-151.0,0.00013699,2]
[399678668,1766610640097,-151.0,0.00013699,2]
[399678669,1766610640107,-151.0,0.00013699,2]
[399678670,1766610640117,-151.0,0.00013699,2]
[399678671,1766610640127,-151.0,0.00013699,2]
[399678672,1766610640138,-294.107252,0.00013699,2]
[399678673,1766610640147,-151.0,0.00013699,2]
[399678674,1766610640157,-151.0,0.00013699,2]
[399678675,1766610640168,-3.44700091,0.00013699,2]
[399678676,1766610640180,-147.55299909,0.00013699,2]
[399678677,1766610640189,-151.0,0.00013699,2]
[399678678,1766610640199,-151.0,0.00013699,2]
[399678679,1766610640209,-151.0,0.00013699,2]
[399678680,1766610640219,-121.22680343,0.00013699,2]
[399678681,1766610640231,-29.77319657,0.00013699,2]
[399678682,1766610640241,-151.0,0.00013699,2]
[399678683,1766610640251,-151.0,0.00013699,2]
[399678684,1766610640261,-151.0,0.00013699,2]
[399678685,1766610640271,-151.0,0.00013699,2]
[399678686,1766610640280,-184.813373,0.00013699,2]
[399678687,1766610640289,-151.0,0.00013699,2]
[399678688,1766610640299,-151.0,0.00013699,2]
[399678689,1766610640308,-153.0,0.000137,2]
[399678690,1766610640317,-467.77790853,0.0001372,2]
[399678691,1766610640327,-1000.0,0.00013821,2]
[399678692,1766610640336,-1000.0,0.00013821,2]
[399678693,1766610640345,-1000.0,0.00013821,2]
[399678694,1766610640355,-1000.0,0.00013821,2]
[399678695,1766610640364,-1000.0,0.00013821,2]
[399678696,1766610640374,-1000.0,0.00013821,2]
[399678697,1766610640383,-1000.0,0.00013821,2]
[399678698,1766610640393,-513.41389064,0.00013821,2]
[399678699,1766610640402,-1000.0,0.00013821,2]
[399678700,1766610640411,-1000.0,0.00013821,2]
[399678701,1766610640421,-1000.0,0.00013821,2]
[399678702,1766610640430,-1000.0,0.00013821,2]
[399678703,1766610640439,-1000.0,0.00013821,2]
[399678704,1766610640448,-1000.0,0.00013821,2]
[399678705,1766610640458,-1000.0,0.00013821,2]
[399678706,1766610640467,-151.0,0.00013821,2]
[399678707,1766610640477,-151.0,0.00013821,2]
[399678708,1766610640487,-205.375976,0.00013821,2]
[399678709,1766610640496,-151.0,0.00013821,2]
[399678710,1766610640506,-600.0,0.0001387,2]
[399678711,1766610640515,-208.323517,0.0001387,2]
[399678712,1766610640525,-208.323517,0.0001387,2]
[399678713,1766610640534,-208.323517,0.0001387,2]
[399678714,1766610640544,-27.16681006,0.0001387,2]
[399678722,1766610643330,-911.53219827,0.00013562,2]
[399678733,1766610646197,-4088.46780173,0.00013562,2]
[399678734,1766610646207,-461.856602,0.00013699,2]
[399678735,1766610646216,-461.856602,0.00013821,2]
[399678736,1766610646227,-181.15670694,0.0001387,2]
[399678737,1766610646236,-177.0,0.00013907,2]
[399678738,1766610646246,-151.0,0.00013957,2]
[399678739,1766610646256,-151.0,0.00013957,2]
[399678741,1766610646265,-151.0,0.00013957,2]
[399678742,1766610646275,-151.0,0.00013957,2]
[399678743,1766610646284,-151.0,0.00013957,2]
[399678744,1766610646294,-151.0,0.00013957,2]
[399678745,1766610646303,-151.0,0.00013957,2]
[399678746,1766610646313,-151.0,0.00013957,2]
[399678747,1766610646322,-151.0,0.00013957,2]
[399678748,1766610646332,-151.0,0.00013957,2]
[399678749,1766610646342,-151.0,0.00013957,2]
[399678750,1766610646353,-151.0,0.00014,2]
[399678752,1766610646362,-15595.59354125,0.00014,2]
[399678753,1766610646372,-600.0,0.00014221,2]
[399678754,1766610646382,-200.0,0.00014246,2]
[399678755,1766610646391,-200.0,0.00014246,2]
[399678756,1766610646401,-202.90249793,0.00014247,2]
[399678757,1766610646410,-1000.0,0.00014247,2]
[399678758,1766610646420,-1000.0,0.00014247,2]
[399678759,1766610646430,-410.84290088,0.00014247,2]
[399678760,1766610646440,-1000.0,0.00014247,2]
[399678761,1766610646449,-1000.0,0.00014247,2]
[399678762,1766610646458,-1000.0,0.00014247,2]
[399678763,1766610646468,-1066.554326,0.00014247,2]
[399678764,1766610646477,-1076.16135034,0.00014247,2]
[399678765,1766610646488,-1000.0,0.00014247,2]
[399678766,1766610646497,-1000.0,0.00014247,2]
[399678767,1766610646507,-686.58743551,0.00014247,2]
[399678768,1766610646516,-1000.0,0.00014247,2]
[399678769,1766610646525,-1000.0,0.00014247,2]
[399678770,1766610646535,-1000.0,0.00014247,2]
[399678771,1766610646544,-1000.0,0.00014247,2]
[399678772,1766610646554,-1000.0,0.00014247,2]
[399678773,1766610646564,-1000.0,0.00014247,2]
[399678774,1766610646574,-1000.0,0.00014247,2]
[399678775,1766610646583,-1000.0,0.00014247,2]
[399678776,1766610646593,-1000.0,0.00014247,2]
[399678777,1766610646603,-1000.0,0.00014247,2]
[399678778,1766610646612,-123.59692734,0.00014247,2]
[399678976,1766611831928,-875.89904586,5.222e-05,2]
[399678978,1766611831940,-1864.47636112,5.222e-05,2]
[399678979,1766611831952,-330.875,5.222e-05,2]
[399678980,1766611831991,-567.45196851,5.222e-05,2]
[399678981,1766611832003,-5156.44203771,5.222e-05,2]
[399678982,1766611832012,-1200.0,6e-05,2]
[399678983,1766611832021,-5000.0,6.001e-05,2]
[399678984,1766611832031,-506.0,6.001e-05,2]
[399678985,1766611832040,-150.0,6.093e-05,2]
[399678986,1766611832050,-150.0,6.14e-05,2]
[399678987,1766611832059,-300.0,6.241e-05,2]
[399678988,1766611832069,-300.0,6.241e-05,2]
[399678990,1766611832078,-335.36699317,6.242e-05,2]
[399678991,1766611832087,-276.66402073,6.242e-05,2]
[399678993,1766611832097,-300.56249905,6.242e-05,2]
[399678996,1766611832107,-416.31500497,6.242e-05,2]
[399678998,1766611832120,-171.42999674,6.242e-05,2]
[399679000,1766611832130,-500.0,6.242e-05,2]
[399679002,1766611832140,-1057.0,6.242e-05,2]
[399679004,1766611832149,-2605.89370984,6.243e-05,2]
[399679014,1766611838082,-24592.4375378,6.243e-05,2]
[399679015,1766611838095,-920.0098551,6.243e-05,2]
[399679016,1766611838108,-625.58105007,6.243e-05,2]
[399679021,1766611840182,-21256.07784716,6.243e-05,2]
[399679022,1766611840192,-173.97233862,6.245e-05,2]
[399679023,1766611840241,-126.02766138,6.245e-05,2]
[399679024,1766611840251,-300.0,6.245e-05,2]
[399679025,1766611840261,-300.0,6.245e-05,2]
[399679026,1766611840271,-300.0,6.245e-05,2]
[399679027,1766611840281,-300.0,6.245e-05,2]
[399679028,1766611840291,-300.0,6.245e-05,2]
[399679029,1766611840300,-300.0,6.245e-05,2]
[399679030,1766611840309,-300.0,6.245e-05,2]
[399679031,1766611840319,-300.0,6.245e-05,2]
[399679032,1766611840329,-300.0,6.245e-05,2]
[399679033,1766611840339,-300.0,6.245e-05,2]
[399679034,1766611840349,-300.0,6.245e-05,2]
[399679035,1766611840359,-300.0,6.245e-05,2]
[399679037,1766611840368,-300.0,6.245e-05,2]
[399679038,1766611840378,-300.0,6.245e-05,2]
[399679039,1766611840388,-578.7712807,6.245e-05,2]
[399679040,1766611840397,-600.0,6.369e-05,2]
[399679041,1766611840406,-150.0,6.698e-05,2]
[399679042,1766611840415,-720.0,7.006e-05,2]
[399679043,1766611840425,-864.0,7.706e-05,2]
[399679044,1766611840435,-578.7712807,7.898e-05,2]
[399679045,1766611840444,-177.0,8.093e-05,2]
[399679046,1766611840454,-1000.0,8.477e-05,2]
[399679047,1766611840464,-500.0,9.323e-05,2]
[399679048,1766611840473,-219.49593598,9.323e-05,2]
[399679049,1766611840482,-500.0,9.323e-05,2]
[399679050,1766611840499,-500.0,9.323e-05,2]
[399679051,1766611840514,-500.0,9.323e-05,2]
[399679052,1766611840528,-638.88291928,9.323e-05,2]
[399679053,1766611840542,-1000.0,9.325e-05,2]
[399679054,1766611840556,-244.0,9.325e-05,2]
[399679055,1766611840570,-578.7712807,9.55e-05,2]
[399679056,1766611840583,-204.0,0.00010093,2]
[399679057,1766611840594,-500.0,0.00010257,2]
[399679058,1766611840605,-1000.0,0.00010257,2]
[399679059,1766611840617,-492.0,0.00010257,2]
[399679060,1766611840630,-578.7712807,0.00011103,2]
[399679061,1766611840642,-1000.0,0.00011283,2]
[399679062,1766611840654,-791.0,0.00011283,2]
[399679063,1766611840667,-231.0,0.00012093,2]
[399679064,1766611840680,-1000.0,0.00012411,2]
[399679065,1766611840692,-1000.0,0.00012411,2]
[399679066,1766611840706,-246.09241887,0.00012545,2]
[399679067,1766611840718,-578.7712807,0.00012755,2]
[399679068,1766611840731,-270.85559961,0.00012855,2]
[399679069,1766611840743,-2207.25908228,0.000129,2]
[399679070,1766611840757,-2207.25908227,0.000129,2]
[399679071,1766611840771,-2207.25908227,0.00012932,2]
[399679072,1766611840784,-2402.91619459,0.00012998,2]
[399679073,1766611841244,-671.77936835,0.00012998,2]
[399679074,1766611841307,-5618.83711693,0.00012998,2]
[399679075,1766611841320,-1213.20435277,0.00012998,2]
[399679080,1766611843301,-332.8696051,0.00012998,2]
[399679092,1766611846189,-13989.12522935,0.00012998,2]
[399679093,1766611846200,-1000.0,0.00013025,2]
[399679094,1766611846212,-1000.0,0.00013025,2]
[399679095,1766611846223,-1000.0,0.00013025,2]
[399679096,1766611846234,-1000.0,0.00013025,2]
[399679097,1766611846245,-185.19777181,0.00013025,2]
[399679098,1766611846256,-496.47127164,0.00013025,2]
[399679099,1766611846267,-1490.35436238,0.00013025,2]
[399679100,1766611846279,-152.462,0.00013164,2]
[399679101,1766611846289,-1369.853,0.00013268,2]
[399679102,1766611846300,-633.0,0.00013268,2]
[399679103,1766611846311,-2160.0,0.00013268,2]
[399679104,1766611846322,-416.0,0.00013268,2]
[399679105,1766611846333,-500.0,0.00013273,2]
[399679106,1766611846359,-500.0,0.00013273,2]
[399679107,1766611846373,-500.0,0.00013273,2]
[399679108,1766611846387,-500.0,0.00013273,2]
[399679109,1766611846400,-500.0,0.00013273,2]
[399679110,1766611846414,-500.0,0.00013273,2]
[399679111,1766611846428,-500.0,0.00013273,2]
[399679112,1766611846441,-500.0,0.00013273,2]
[399679113,1766611846454,-500.0,0.00013273,2]
[399679114,1766611846467,-500.0,0.00013273,2]
[399679115,1766611846481,-500.0,0.00013273,2]
[399679116,1766611846496,-500.0,0.00013273,2]
[399679117,1766611846508,-500.0,0.00013273,2]
[399679118,1766611846521,-500.0,0.00013273,2]
[399679119,1766611846535,-775.75441622,0.00013505,2]
[399679120,1766611846548,-300.0,0.00013673,2]
[399679121,1766611846561,-1500.0,0.00013699,2]
[399679122,1766611846574,-500.0,0.00013699,2]
[399679123,1766611846588,-500.0,0.00013699,2]
[399679124,1766611846603,-500.0,0.00013699,2]
[399679125,1766611846617,-523.62813326,0.00013699,2]
[399679126,1766611846629,-500.0,0.00013699,2]
[399679127,1766611846642,-509.9508423,0.00013699,2]
[399679128,1766611846655,-500.0,0.00013699,2]
[399679129,1766611846670,-500.0,0.00013699,2]
[399679130,1766611846686,-500.0,0.00013699,2]
[399679131,1766611846697,-500.0,0.00013699,2]
[399679132,1766611846710,-500.0,0.00013699,2]
[399679133,1766611846723,-500.0,0.00013699,2]
[399679134,1766611846736,-411.10301786,0.00013699,2]
[399679135,1766611846758,-88.89698214,0.00013699,2]
[399679136,1766611846776,-500.0,0.00013699,2]
[399679137,1766611846789,-500.0,0.00013699,2]
[399679138,1766611846803,-500.0,0.00013699,2]
[399679139,1766611846818,-500.0,0.00013699,2]
[399679140,1766611846831,-500.0,0.00013699,2]
[399679141,1766611846844,-500.0,0.00013699,2]
[399679142,1766611846856,-500.0,0.00013699,2]
[399679143,1766611846867,-500.0,0.00013699,2]
[399679144,1766611846879,-500.0,0.00013699,2]
[399679145,1766611846891,-500.0,0.00013699,2]
[399679146,1766611846903,-500.0,0.00013699,2]
[399679147,1766611846920,-500.0,0.00013699,2]
[399679148,1766611846932,-500.0,0.00013699,2]
[399679149,1766611846945,-500.0,0.00013699,2]
[399679150,1766611846956,-500.0,0.00013699,2]
[399679151,1766611847511,-500.0,0.00013699,2]
[399679152,1766611847540,-500.0,0.00013699,2]
[399679153,1766611847563,-500.0,0.00013699,2]
[399679154,1766611847579,-500.0,0.00013699,2]
[399679155,1766611847589,-500.0,0.00013699,2]
[399679156,1766611847599,-500.0,0.00013699,2]
[399679157,1766611847608,-500.0,0.00013699,2]
[399679158,1766611847618,-500.0,0.00013699,2]
[399679159,1766611847629,-318.34358997,0.00013699,2]
[399679160,1766611847640,-500.0,0.00013699,2]
[399679161,1766611847650,-500.0,0.00013699,2]
[399679162,1766611847659,-500.0,0.00013699,2]
[399679163,1766611847669,-365.33645743,0.00013699,2]
[399679164,1766611847679,-439.41208842,0.00013699,2]
[399679165,1766611847688,-500.0,0.00013699,2]
[399679166,1766611847699,-500.0,0.00013699,2]
[399679167,1766611847708,-500.0,0.00013699,2]
[399679168,1766611847718,-500.0,0.00013699,2]
[399679169,1766611847727,-500.0,0.00013699,2]
[399679170,1766611847736,-500.0,0.00013699,2]
[399679171,1766611847747,-500.0,0.00013699,2]
[399679172,1766611847756,-500.0,0.00013699,2]
[399679173,1766611847766,-500.0,0.00013699,2]
[399679174,1766611847775,-500.0,0.00013699,2]
[399679175,1766611847785,-101.19575062,0.00013699,2]
[399679176,1766611847876,-35.42517517,0.00013699,2]
[399679424,1766613032191,-5000.0,0.00012299,2]
[399679425,1766613032202,-594.0,0.00012299,2]
[399679426,1766613032212,-150.0,0.00012424,2]
[399679427,1766613032222,-164.99270198,0.00012805,2]
[399679428,1766613032232,-186.29158513,0.00013173,2]
[399679430,1766613032242,-300.0,0.00013183,2]
[399679432,1766613032252,-1200.0,0.00013183,2]
[399679434,1766613032263,-544.56193379,0.00013184,2]
[399679435,1766613032272,-1379.53692648,0.00013184,2]
[399679438,1766613032284,-2312.83697232,0.00013265,2]
[399679440,1766613032298,-500.0,0.00013273,2]
[399679443,1766613032308,-24.07988032,0.00013273,2]
[399679445,1766613032320,-475.92011968,0.00013273,2]
[399679448,1766613032331,-500.0,0.00013273,2]
[399679451,1766613032341,-500.0,0.00013273,2]
[399679454,1766613032351,-500.0,0.00013273,2]
[399679456,1766613032361,-26240.6757144,0.00013273,2]
[399679459,1766613032374,-14737.41067775,0.00013273,2]
[399679493,1766613038332,-500.0,0.00013273,2]
[399679494,1766613038342,-500.0,0.00013273,2]
[399679495,1766613038352,-500.0,0.00013273,2]
[399679496,1766613038364,-500.0,0.00013273,2]
[399679497,1766613038374,-500.0,0.00013273,2]
[399679498,1766613038384,-500.0,0.00013273,2]
[399679499,1766613038394,-500.0,0.00013273,2]
[399679500,1766613038403,-500.0,0.00013273,2]
[399679501,1766613038413,-500.0,0.00013273,2]
[399679502,1766613038422,-285.32908402,0.00013273,2]
[399679503,1766613038442,-214.67091598,0.00013273,2]
[399679504,1766613038452,-373.21597965,0.00013281,2]
[399679505,1766613038466,-171.34595412,0.00013281,2]
[399679506,1766613038476,-600.0,0.00013284,2]
[399679507,1766613038487,-500.0,0.00013378,2]
[399679508,1766613038498,-500.0,0.00013378,2]
[399679509,1766613038508,-207.41287985,0.00013378,2]
[399679510,1766613038518,-312.63409625,0.00013378,2]
[399679511,1766613038528,-544.56193377,0.00013379,2]
[399679512,1766613038538,-544.56193377,0.00013476,2]
[399679513,1766613038548,-544.56193377,0.00013573,2]
[399679514,1766613038558,-2281.53246392,0.00013579,2]
[399679515,1766613038567,-9776.21283422,0.00013599,2]
[399679522,1766613040400,-1119.50542007,0.00013599,2]
[399679523,1766613040462,-37427.57979903,0.00013599,2]
[399679524,1766613040475,-8365.41027595,0.00013599,2]
[399679525,1766613040487,-1795.85138465,0.00013599,2]
[399679527,1766613040506,-243122.71922496,0.00013599,2]
[399679528,1766613040530,-304.127,0.00013599,2]
[399679529,1766613040542,-17051.59321187,0.00013599,2]
[399679550,1766613043465,-10313.11202671,0.00013599,2]
[399679551,1766613043477,-1318.70184405,0.00013599,2]
[399679552,1766613043489,-45797.85780735,0.00013599,2]
[399679553,1766613043500,-373.23113026,0.00013599,2]
[399679554,1766613043635,-4982.51510136,0.00013599,2]
[399679562,1766613046407,-8778.7,0.00013599,2]
[399679563,1766613046419,-709.96952181,0.00013599,2]
[399679564,1766613046431,-25826.29,0.00013599,2]
[399679565,1766613046443,-6791.94900133,0.00013599,2]
[399679566,1766613046523,-2583.70658444,0.00013599,2]
[399679567,1766613046535,-7231.59063587,0.00013599,2]
[399679962,1766614232321,-398.74315297,0.00011997,2]
[399679963,1766614232334,-1331.21619743,0.00011997,2]
[399679964,1766614232348,-385.80856207,0.00011997,2]
[399679965,1766614232360,-2884.23208753,0.00011997,2]
[399679966,1766614232370,-589.0,0.00011997,2]
[399679967,1766614232381,-150.0,0.00012058,2]
[399679968,1766614232391,-190.2321262,0.00012302,2]
[399679969,1766614232401,-343.26108593,0.00012518,2]
[399679970,1766614232412,-392.29838392,0.00012518,2]
[399679971,1766614232422,-612.35325865,0.00012518,2]
[399679972,1766614232431,-373.28533166,0.00012518,2]